fUSD/lending_fUSD_20260622
["ID","MTS","AMOUNT","RATE_DAILY","PERIOD"]
[425999189,1782088253000,-500.0,0.00027397,2]
[425999200,1782088253000,-538.36113265,0.00027397,2]
[425999171,1782088253000,-500.0,0.00027397,2]
[425999190,1782088253000,-500.0,0.00027397,2]
[425999182,1782088253000,-500.0,0.00027397,2]
[425999167,1782088253000,-954.4,0.00027397,2]
[425999145,1782088253000,-500.0,0.00027397,2]
[425999163,1782088253000,-928.87,0.00027397,2]
[425999195,1782088253000,-500.0,0.00027397,2]
[425999143,1782088253000,-500.0,0.00027397,2]
[425999139,1782088253000,-500.0,0.00027397,2]
[425999140,1782088253000,-569.01,0.00027397,2]
[425999142,1782088253000,-500.0,0.00027397,2]
[425999141,1782088253000,-533.17467605,0.00027397,2]
[425999144,1782088253000,-500.0,0.00027397,2]
[425999146,1782088253000,-500.0,0.00027397,2]
[425999154,1782088253000,-1090.86,0.00027397,2]
[425999149,1782088253000,-500.0,0.00027397,2]
[425999152,1782088253000,-3276.22,0.00027397,2]
[425999147,1782088253000,-500.0,0.00027397,2]
[425999165,1782088253000,-300.0,0.00027397,2]
[425999153,1782088253000,-500.0,0.00027397,2]
[425999150,1782088253000,-559.56946431,0.00027397,2]
[425999151,1782088253000,-500.0,0.00027397,2]
[425999155,1782088253000,-500.0,0.00027397,2]
[425999156,1782088253000,-500.0,0.00027397,2]
[425999159,1782088253000,-6336.71,0.00027397,2]
[425999166,1782088253000,-500.0,0.00027397,2]
[425999157,1782088253000,-1315.4,0.00027397,2]
[425999158,1782088253000,-589.65,0.00027397,2]
[425999160,1782088253000,-500.0,0.00027397,2]
[425999162,1782088253000,-500.0,0.00027397,2]
[425999164,1782088253000,-9053.52,0.00027397,2]
[425999161,1782088253000,-500.0,0.00027397,2]
[425999148,1782088253000,-500.0,0.00027397,2]
[425999194,1782088253000,-422.9340936,0.00027397,2]
[425999197,1782088253000,-500.0,0.00027397,2]
[425999193,1782088253000,-500.0,0.00027397,2]
[425999230,1782088253000,-151.0,0.00027397,2]
[425999235,1782088253000,-1167.361721,0.00027397,2]
[425999228,1782088253000,-151.0,0.00027397,2]
[425999229,1782088253000,-1025.49,0.00027397,2]
[425999227,1782088253000,-151.0,0.00027397,2]
[425999234,1782088253000,-1167.361721,0.00027397,2]
[425999233,1782088253000,-1167.361721,0.00027397,2]
[425999231,1782088253000,-151.0,0.00027397,2]
[425999237,1782088253000,-1167.361721,0.00027397,2]
[425999241,1782088253000,-1167.361721,0.00027397,2]
[425999246,1782088253000,-16584.9,0.00027397,10]
[425999239,1782088253000,-1167.361721,0.00027397,2]
[425999242,1782088253000,-1167.361721,0.00027397,2]
[425999243,1782088253000,-1167.361721,0.00027397,2]
[425999247,1782088253000,-13820.75,0.00027397,10]
[425999244,1782088253000,-1167.361721,0.00027397,2]
[425999240,1782088253000,-1167.361721,0.00027397,2]
[425999238,1782088253000,-1167.361721,0.00027397,2]
[425999245,1782088253000,-233.45,0.00027397,2]
[425999248,1782088253000,-151.0,0.00027397,2]
[425999252,1782088253000,-500.0,0.00027399,2]
[425999251,1782088253000,-11261.25756391,0.00027397,2]
[425999250,1782088253000,-250.855081,0.00027397,2]
[425999249,1782088253000,-11517.29,0.00027397,10]
[425999199,1782088253000,-1500.0,0.00027397,2]
[425999232,1782088253000,-151.0,0.00027397,2]
[425999225,1782088253000,-151.0,0.00027397,2]
[425999253,1782088253000,-1283.45,0.000274,2]
[425999226,1782088253000,-151.0,0.00027397,2]
[425999236,1782088253000,-1167.361721,0.00027397,2]
[425999196,1782088253000,-520.71,0.00027397,2]
[425999202,1782088253000,-3094.44,0.00027397,2]
[425999201,1782088253000,-153.019767,0.00027397,2]
[425999204,1782088253000,-1576.422151,0.00027397,2]
[425999203,1782088253000,-1576.422151,0.00027397,2]
[425999205,1782088253000,-1576.422151,0.00027397,2]
[425999207,1782088253000,-300.0,0.00027397,2]
[425999210,1782088253000,-1576.422151,0.00027397,2]
[425999208,1782088253000,-1576.422151,0.00027397,2]
[425999211,1782088253000,-1576.422151,0.00027397,2]
[425999206,1782088253000,-1576.422151,0.00027397,2]
[425999209,1782088253000,-1576.422151,0.00027397,2]
[425999198,1782088253000,-500.0,0.00027397,2]
[425999216,1782088253000,-1576.422151,0.00027397,2]
[425999212,1782088253000,-1576.422151,0.00027397,2]
[425999213,1782088253000,-1576.422151,0.00027397,2]
[425999224,1782088253000,-151.0,0.00027397,2]
[425999217,1782088253000,-1576.422151,0.00027397,2]
[425999221,1782088253000,-151.0,0.00027397,2]
[425999222,1782088253000,-151.0,0.00027397,2]
[425999220,1782088253000,-530.29,0.00027397,2]
[425999218,1782088253000,-1576.422151,0.00027397,2]
[425999219,1782088253000,-1576.422151,0.00027397,2]
[425999215,1782088253000,-1576.422151,0.00027397,2]
[425999214,1782088253000,-1576.422151,0.00027397,2]
[425999223,1782088253000,-151.0,0.00027397,2]
[425999293,1782088254000,-500.0,0.00027446,2]
[425999288,1782088254000,-500.0,0.00027446,2]
[425999292,1782088254000,-500.0,0.00027446,2]
[425999289,1782088254000,-500.0,0.00027446,2]
[425999290,1782088254000,-500.0,0.00027446,2]
[425999287,1782088254000,-500.0,0.00027446,2]
[425999286,1782088254000,-500.0,0.00027446,2]
[425999284,1782088254000,-500.0,0.00027446,2]
[425999294,1782088254000,-500.0,0.00027446,2]
[425999285,1782088254000,-500.0,0.00027446,2]
[425999278,1782088254000,-500.0,0.00027446,2]
[425999298,1782088254000,-500.0,0.00027446,2]
[425999291,1782088254000,-500.0,0.00027446,2]
[425999297,1782088254000,-500.0,0.00027446,2]
[425999307,1782088254000,-500.0,0.00027446,2]
[425999296,1782088254000,-500.0,0.00027446,2]
[425999299,1782088254000,-500.0,0.00027446,2]
[425999300,1782088254000,-500.0,0.00027446,2]
[425999302,1782088254000,-500.0,0.00027446,2]
[425999305,1782088254000,-500.0,0.00027446,2]
[425999301,1782088254000,-500.0,0.00027446,2]
[425999306,1782088254000,-500.0,0.00027446,2]
[425999304,1782088254000,-500.0,0.00027446,2]
[425999282,1782088254000,-500.0,0.00027446,2]
[425999295,1782088254000,-500.0,0.00027446,2]
[425999279,1782088254000,-500.0,0.00027446,2]
[425999265,1782088254000,-500.0,0.00027446,2]
[425999277,1782088254000,-500.0,0.00027446,2]
[425999259,1782088254000,-397.05205056,0.000274,2]
[425999255,1782088254000,-1000.0,0.000274,2]
[425999257,1782088254000,-1092.34,0.000274,2]
[425999254,1782088254000,-836.78,0.000274,2]
[425999256,1782088254000,-1000.0,0.000274,2]
[425999258,1782088254000,-316.0,0.000274,2]
[425999260,1782088254000,-241.0,0.00027415,5]
[425999262,1782088254000,-500.0,0.00027446,2]
[425999263,1782088254000,-500.0,0.00027446,2]
[425999270,1782088254000,-500.0,0.00027446,2]
[425999271,1782088254000,-500.0,0.00027446,2]
[425999281,1782088254000,-500.0,0.00027446,2]
[425999267,1782088254000,-500.0,0.00027446,2]
[425999266,1782088254000,-500.0,0.00027446,2]
[425999264,1782088254000,-500.0,0.00027446,2]
[425999268,1782088254000,-500.0,0.00027446,2]
[425999269,1782088254000,-500.0,0.00027446,2]
[425999283,1782088254000,-500.0,0.00027446,2]
[425999273,1782088254000,-500.0,0.00027446,2]
[425999272,1782088254000,-500.0,0.00027446,2]
[425999274,1782088254000,-500.0,0.00027446,2]
[425999275,1782088254000,-500.0,0.00027446,2]
[425999276,1782088254000,-500.0,0.00027446,2]
[425999280,1782088254000,-500.0,0.00027446,2]
[425999261,1782088254000,-4232.0,0.00027445,10]
[425999310,1782088254000,-500.0,0.00027446,2]
[425999303,1782088254000,-500.0,0.00027446,2]
[425999312,1782088254000,-500.0,0.00027446,2]
[425999335,1782088254000,-500.0,0.00027446,2]
[425999339,1782088254000,-500.0,0.00027446,2]
[425999348,1782088254000,-1167.361721,0.00027446,7]
[425999345,1782088254000,-743.0,0.00027446,2]
[425999354,1782088254000,-672.63697964,0.00027499,10]
[425999343,1782088254000,-500.0,0.00027446,2]
[425999352,1782088254000,-3267.11657483,0.00027462,2]
[425999346,1782088254000,-215.903318,0.00027446,7]
[425999353,1782088254000,-300.0,0.00027499,10]
[425999347,1782088254000,-151.0,0.00027446,7]
[425999344,1782088254000,-500.0,0.00027446,2]
[425999351,1782088254000,-1167.361721,0.00027446,7]
[425999350,1782088254000,-1167.361721,0.00027446,7]
[425999342,1782088254000,-500.0,0.00027446,2]
[425999349,1782088254000,-1167.361721,0.00027446,7]
[425999355,1782088254000,-500.0,0.00027499,2]
[425999357,1782088254000,-296.52,0.000275,7]
[425999361,1782088254000,-50000.0,0.000275,5]
[425999359,1782088254000,-50000.0,0.000275,7]
[425999363,1782088254000,-29283.99,0.000275,5]
[425999364,1782088254000,-25127.50076782,0.000275,7]
[425999356,1782088254000,-205.31598792,0.000275,2]
[425999362,1782088254000,-50000.0,0.000275,5]
[425999360,1782088254000,-50000.0,0.000275,7]
[425999311,1782088254000,-500.0,0.00027446,2]
[425999340,1782088254000,-500.0,0.00027446,2]
[425999341,1782088254000,-500.0,0.00027446,2]
[425999358,1782088254000,-50000.0,0.000275,7]
[425999338,1782088254000,-500.0,0.00027446,2]
[425999337,1782088254000,-500.0,0.00027446,2]
[425999315,1782088254000,-500.0,0.00027446,2]
[425999317,1782088254000,-500.0,0.00027446,2]
[425999314,1782088254000,-500.0,0.00027446,2]
[425999316,1782088254000,-500.0,0.00027446,2]
[425999308,1782088254000,-500.0,0.00027446,2]
[425999313,1782088254000,-500.0,0.00027446,2]
[425999309,1782088254000,-500.0,0.00027446,2]
[425999318,1782088254000,-500.0,0.00027446,2]
[425999321,1782088254000,-500.0,0.00027446,2]
[425999320,1782088254000,-500.0,0.00027446,2]
[425999323,1782088254000,-500.0,0.00027446,2]
[425999319,1782088254000,-500.0,0.00027446,2]
[425999322,1782088254000,-500.0,0.00027446,2]
[425999336,1782088254000,-500.0,0.00027446,2]
[425999324,1782088254000,-500.0,0.00027446,2]
[425999334,1782088254000,-500.0,0.00027446,2]
[425999332,1782088254000,-500.0,0.00027446,2]
[425999331,1782088254000,-500.0,0.00027446,2]
[425999330,1782088254000,-500.0,0.00027446,2]
[425999333,1782088254000,-500.0,0.00027446,2]
[425999325,1782088254000,-500.0,0.00027446,2]
[425999327,1782088254000,-500.0,0.00027446,2]
[425999328,1782088254000,-500.0,0.00027446,2]
[425999326,1782088254000,-500.0,0.00027446,2]
[425999329,1782088254000,-500.0,0.00027446,2]
[425999371,1782088255000,-1253.64775513,0.000275,7]
[425999370,1782088255000,-500.0,0.00026026,2]
[425999368,1782088255000,-167.14585756,0.00026017,2]
[425999369,1782088255000,-4954.99177908,0.000275,7]
[425999366,1782088255000,-1147.84994232,0.000275,7]
[425999367,1782088255000,-2381.54692721,0.000275,7]
[425999365,1782088255000,-360.15342158,0.000275,7]
[425999373,1782088256000,-231.84317557,0.00012656,2]
[425999372,1782088256000,-443.905,0.00017259,2]
[425999375,1782088256000,-56.095,0.00017259,2]
[425999374,1782088256000,-151.0,0.0001603,2]
[425999379,1782088256000,-3890.21155473,0.000275,7]
[425999378,1782088256000,-14774.30940686,0.000275,7]
[425999377,1782088256000,-500.0,0.00027397,2]
[425999380,1782088256000,-2068.55779349,0.000275,7]
[425999376,1782088256000,-383.80814629,0.00026499,2]
[425999381,1782088257000,-1273.66,0.000275,7]
[425999383,1782088887000,2682.0,0.00030137,120]
[425999384,1782088974000,400.53337006,0.0003,120]
[425999385,1782089119000,435.8,0.000299,120]
[425999409,1782089431000,-500.0,0.00014686,2]
[425999403,1782089431000,-500.0,0.00014686,2]
[425999405,1782089431000,-500.0,0.00014686,2]
[425999404,1782089431000,-500.0,0.00014686,2]
[425999422,1782089431000,-500.0,0.00014686,2]
[425999421,1782089431000,-500.0,0.00014686,2]
[425999402,1782089431000,-500.0,0.00014686,2]
[425999412,1782089431000,-500.0,0.00014686,2]
[425999413,1782089431000,-500.0,0.00014686,2]
[425999411,1782089431000,-500.0,0.00014686,2]
[425999406,1782089431000,-500.0,0.00014686,2]
[425999398,1782089431000,-151.0,0.00014685,2]
[425999407,1782089431000,-500.0,0.00014686,2]
[425999401,1782089431000,-186.49744625,0.00014686,2]
[425999399,1782089431000,-500.0,0.00014686,2]
[425999400,1782089431000,-313.50255375,0.00014686,2]
[425999397,1782089431000,-318.0,0.00014685,2]
[425999396,1782089431000,-152.0,0.00014685,2]
[425999393,1782089431000,-267.43371386,0.000145,2]
[425999395,1782089431000,-310.0,0.00014685,2]
[425999394,1782089431000,-313.0,0.00014685,2]
[425999392,1782089431000,-250.0,0.00014,2]
[425999410,1782089431000,-500.0,0.00014686,2]
[425999408,1782089431000,-500.0,0.00014686,2]
[425999415,1782089431000,-500.0,0.00014686,2]
[425999433,1782089431000,-150.0,0.00014687,2]
[425999416,1782089431000,-500.0,0.00014686,2]
[425999420,1782089431000,-253.0253052,0.00014686,2]
[425999443,1782089431000,-151.0,0.00014687,2]
[425999444,1782089431000,-321.0,0.00014687,2]
[425999442,1782089431000,-319.0,0.00014687,2]
[425999438,1782089431000,-310.0,0.00014687,2]
[425999440,1782089431000,-318.0,0.00014687,2]
[425999439,1782089431000,-151.0,0.00014687,2]
[425999436,1782089431000,-150.0,0.00014687,2]
[425999432,1782089431000,-250.0,0.00014687,2]
[425999437,1782089431000,-313.0,0.00014687,2]
[425999434,1782089431000,-309.0,0.00014687,2]
[425999435,1782089431000,-314.0,0.00014687,2]
[425999441,1782089431000,-321.0,0.00014687,2]
[425999418,1782089431000,-500.0,0.00014686,2]
[425999424,1782089431000,-500.0,0.00014686,2]
[425999419,1782089431000,-500.0,0.00014686,2]
[425999417,1782089431000,-500.0,0.00014686,2]
[425999425,1782089431000,-500.0,0.00014686,2]
[425999423,1782089431000,-500.0,0.00014686,2]
[425999414,1782089431000,-500.0,0.00014686,2]
[425999427,1782089431000,-500.0,0.00014686,2]
[425999430,1782089431000,-250.0,0.00014686,2]
[425999431,1782089431000,-39699.1262,0.00014687,2]
[425999428,1782089431000,-500.0,0.00014686,2]
[425999429,1782089431000,-500.0,0.00014686,2]
[425999477,1782089432000,-150.0,0.00014726,2]
[425999475,1782089432000,-310.0,0.00014726,2]
[425999468,1782089432000,-317.0,0.00014726,2]
[425999467,1782089432000,-151.0,0.00014726,2]
[425999473,1782089432000,-318.0,0.00014726,2]
[425999474,1782089432000,-151.0,0.00014726,2]
[425999472,1782089432000,-309.0,0.00014726,2]
[425999471,1782089432000,-318.0,0.00014726,2]
[425999470,1782089432000,-151.0,0.00014726,2]
[425999487,1782089432000,-196.41439377,0.00016362,2]
[425999483,1782089432000,-465.96994273,0.00016098,2]
[425999479,1782089432000,-160.0,0.00014802,2]
[425999482,1782089432000,-88541.70795111,0.00015214,2]
[425999486,1782089432000,-300.0,0.00016198,2]
[425999484,1782089432000,-250.0,0.00016155,2]
[425999490,1782089432000,-500.0,0.00016438,2]
[425999489,1782089432000,-500.0,0.00016438,2]
[425999480,1782089432000,-3781.97988997,0.00015214,2]
[425999485,1782089432000,-300.0,0.00016155,2]
[425999465,1782089432000,-309.0,0.00014726,2]
[425999481,1782089432000,-8314.07155892,0.00015214,2]
[425999478,1782089432000,-151.0,0.00014726,2]
[425999455,1782089432000,-153.0,0.00014725,2]
[425999476,1782089432000,-321.0,0.00014726,2]
[425999491,1782089432000,-500.0,0.00016438,2]
[425999449,1782089432000,-150.0,0.00014724,2]
[425999451,1782089432000,-150.0,0.00014725,2]
[425999450,1782089432000,-151.0,0.00014725,2]
[425999445,1782089432000,-311.0,0.00014687,2]
[425999448,1782089432000,-151.0,0.00014724,2]
[425999446,1782089432000,-151.0,0.00014724,2]
[425999447,1782089432000,-151.0,0.00014724,2]
[425999452,1782089432000,-150.0,0.00014725,2]
[425999466,1782089432000,-316.0,0.00014726,2]
[425999454,1782089432000,-150.0,0.00014725,2]
[425999456,1782089432000,-318.0,0.00014726,2]
[425999457,1782089432000,-313.0,0.00014726,2]
[425999463,1782089432000,-152.0,0.00014726,2]
[425999459,1782089432000,-316.0,0.00014726,2]
[425999453,1782089432000,-150.0,0.00014725,2]
[425999464,1782089432000,-314.0,0.00014726,2]
[425999460,1782089432000,-318.0,0.00014726,2]
[425999461,1782089432000,-318.0,0.00014726,2]
[425999462,1782089432000,-312.0,0.00014726,2]
[425999458,1782089432000,-315.0,0.00014726,2]
[425999488,1782089432000,-70.45322993,0.00016362,2]
[425999469,1782089432000,-310.0,0.00014726,2]
[425999493,1782089432000,-500.0,0.00016438,2]
[425999517,1782089432000,-500.0,0.00016438,2]
[425999520,1782089432000,-319.55370361,0.00017199,2]
[425999530,1782089432000,-5572.67547435,0.000182,2]
[425999519,1782089432000,-499.99999999,0.00016438,2]
[425999531,1782089432000,-1272.04234312,0.000183,2]
[425999521,1782089432000,-500.0,0.00017199,2]
[425999522,1782089432000,-465.96994268,0.00017434,2]
[425999529,1782089432000,-807.36671608,0.000182,2]
[425999525,1782089432000,-807.36671608,0.00018,2]
[425999513,1782089432000,-410.66726759,0.00016438,2]
[425999524,1782089432000,-9999.99,0.00017728,2]
[425999527,1782089432000,-1272.04234312,0.000181,2]
[425999528,1782089432000,-181.07535643,0.000181,2]
[425999523,1782089432000,-500.0,0.00017644,2]
[425999532,1782089432000,-181.07535643,0.000183,2]
[425999534,1782089432000,-5572.67547435,0.000184,2]
[425999535,1782089432000,-1272.04234312,0.000185,2]
[425999533,1782089432000,-807.36671608,0.000184,2]
[425999536,1782089432000,-181.07535643,0.000185,2]
[425999492,1782089432000,-500.0,0.00016438,2]
[425999526,1782089432000,-5572.67547435,0.00018,2]
[425999518,1782089432000,-500.0,0.00016438,2]
[425999537,1782089432000,-807.36671608,0.000186,2]
[425999514,1782089432000,-500.0,0.00016438,2]
[425999511,1782089432000,-500.0,0.00016438,2]
[425999494,1782089432000,-500.0,0.00016438,2]
[425999503,1782089432000,-500.0,0.00016438,2]
[425999498,1782089432000,-500.0,0.00016438,2]
[425999504,1782089432000,-500.0,0.00016438,2]
[425999495,1782089432000,-500.0,0.00016438,2]
[425999496,1782089432000,-500.0,0.00016438,2]
[425999497,1782089432000,-500.0,0.00016438,2]
[425999500,1782089432000,-500.0,0.00016438,2]
[425999501,1782089432000,-500.0,0.00016438,2]
[425999502,1782089432000,-500.0,0.00016438,2]
[425999505,1782089432000,-500.0,0.00016438,2]
[425999499,1782089432000,-500.0,0.00016438,2]
[425999515,1782089432000,-500.0,0.00016438,2]
[425999507,1782089432000,-500.0,0.00016438,2]
[425999516,1782089432000,-500.0,0.00016438,2]
[425999512,1782089432000,-500.0,0.00016438,2]
[425999538,1782089432000,-3344.31545074,0.000186,2]
[425999509,1782089432000,-500.0,0.00016438,2]
[425999508,1782089432000,-500.0,0.00016438,2]
[425999506,1782089432000,-500.0,0.00016438,2]
[425999510,1782089432000,-500.0,0.00016438,2]
[425999540,1782089433000,-500.0,0.00014685,2]
[425999541,1782089433000,-45.95401412,0.00014685,2]
[425999539,1782089433000,-162.2902229,0.00014685,2]
[425999563,1782089437000,-461.43102894,0.00014685,2]
[425999559,1782089437000,-333.78740607,0.00014685,2]
[425999562,1782089437000,-546.34016075,0.00014685,2]
[425999558,1782089437000,-454.04598588,0.00014685,2]
[425999565,1782089437000,-1879.59805333,0.000186,2]
[425999560,1782089437000,-410.06557452,0.00014685,2]
[425999564,1782089437000,-178.0936,0.00015114,2]
[425999561,1782089437000,-500.0,0.00014685,2]
[425999574,1782089440000,-1272.04234312,0.00019,2]
[425999566,1782089440000,-348.76197028,0.000186,2]
[425999567,1782089440000,-1272.04234312,0.000187,2]
[425999568,1782089440000,-181.07535643,0.000187,2]
[425999570,1782089440000,-807.36671608,0.000188,2]
[425999578,1782089440000,-4679.17859957,0.000193,2]
[425999576,1782089440000,-1272.04234312,0.000192,2]
[425999573,1782089440000,-5572.67547435,0.00019,2]
[425999571,1782089440000,-5572.67547435,0.000188,2]
[425999569,1782089440000,-465.96994268,0.00018769,2]
[425999577,1782089440000,-500.0,0.00019299,2]
[425999575,1782089440000,-5572.67547435,0.000191,2]
[425999572,1782089440000,-1272.04234312,0.000188,2]
[425999604,1782089442000,-305.84527617,0.000208,2]
[425999597,1782089442000,-227.0,0.0002,2]
[425999600,1782089442000,-305.84527617,0.000202,2]
[425999598,1782089442000,-154.0,0.0002,2]
[425999599,1782089442000,-465.96994268,0.00020105,2]
[425999594,1782089442000,-153.0,0.0002,2]
[425999595,1782089442000,-267.0,0.0002,2]
[425999596,1782089442000,-420.0,0.0002,2]
[425999592,1782089442000,-305.84527617,0.0002,2]
[425999606,1782089442000,-354.0,0.00021,2]
[425999603,1782089442000,-305.84527617,0.000206,2]
[425999601,1782089442000,-305.84527617,0.000204,2]
[425999590,1782089442000,-5572.67547435,0.000197,2]
[425999589,1782089442000,-1272.04234312,0.000196,2]
[425999591,1782089442000,-1272.04234312,0.000198,2]
[425999588,1782089442000,-5572.67547435,0.000195,2]
[425999586,1782089442000,-893.49687478,0.000193,2]
[425999587,1782089442000,-1272.04234312,0.000194,2]
[425999602,1782089442000,-166.66,0.00020423,2]
[425999608,1782089442000,-267.0,0.00021,2]
[425999593,1782089442000,-354.0,0.0002,2]
[425999607,1782089442000,-153.0,0.00021,2]
[425999605,1782089442000,-166.66,0.00020853,2]
[425999623,1782089442000,-151.0,0.00021863,2]
[425999622,1782089442000,-151.0,0.00021863,2]
[425999624,1782089442000,-151.0,0.00021863,2]
[425999626,1782089442000,-151.0,0.00021863,2]
[425999618,1782089442000,-151.0,0.00021863,2]
[425999621,1782089442000,-151.0,0.00021863,2]
[425999616,1782089442000,-166.66,0.00021713,2]
[425999620,1782089442000,-176.93779743,0.00021863,2]
[425999625,1782089442000,-151.0,0.00021863,2]
[425999627,1782089442000,-151.0,0.00021863,2]
[425999617,1782089442000,-151.0,0.00021863,2]
[425999615,1782089442000,-170.71,0.00021637,2]
[425999610,1782089442000,-227.0,0.00021,2]
[425999609,1782089442000,-420.0,0.00021,2]
[425999613,1782089442000,-465.96994268,0.00021441,2]
[425999614,1782089442000,-341.62,0.00021517,2]
[425999612,1782089442000,-500.0,0.00021397,2]
[425999611,1782089442000,-166.66,0.00021283,2]
[425999619,1782089442000,-151.0,0.00021863,2]
[425999628,1782089443000,-151.0,0.00021863,2]
[425999636,1782089443000,-500.0,0.00021999,2]
[425999629,1782089443000,-151.0,0.00021863,2]
[425999704,1782089445000,-150.0,0.00026356,5]
[425999705,1782089445000,-471.50351379,0.000264,2]
[425999703,1782089445000,-575.63081023,0.00026355,2]
[425999708,1782089446000,-200.0,0.00026475,2]
[425999709,1782089446000,-263.19726144,0.00026478,2]
[425999706,1782089446000,-578.28058621,0.000264,2]
[425999707,1782089446000,-1267.76415235,0.000264,2]
[425999713,1782089462000,196.46800975,0.00027599,120]
[425999714,1782089463000,2500.0,0.00027599,120]
[425999715,1782089463000,2500.0,0.00025372,120]
[425999718,1782089463000,2500.0,0.00025914,120]
[425999717,1782089463000,2500.0,0.00025914,120]
[425999716,1782089463000,2500.0,0.00025914,120]
[425999722,1782089980000,156.89,0.00026043,120]
[425999747,1782090632000,-152.0,0.00014581,2]
[425999749,1782090632000,-151.0,0.00014581,2]
[425999746,1782090632000,-151.0,0.00014581,2]
[425999745,1782090632000,-151.0,0.00014581,2]
[425999744,1782090632000,-151.0,0.00014581,2]
[425999741,1782090632000,-9127.98269876,0.00014487,2]
[425999740,1782090632000,-544.40980124,0.00014487,2]
[425999737,1782090632000,-500.0,0.00014486,2]
[425999738,1782090632000,-634.57075575,0.00014486,2]
[425999739,1782090632000,-287.54970954,0.00014486,2]
[425999736,1782090632000,-500.0,0.00014486,2]
[425999735,1782090632000,-287.04590216,0.00014486,2]
[425999742,1782090632000,-600.0,0.000145,5]
[425999743,1782090632000,-151.0,0.00014581,2]
[425999733,1782090632000,-40.5813334,0.00014486,2]
[425999732,1782090632000,-155.08063583,0.00014034,2]
[425999730,1782090632000,-764.0,0.00013855,2]
[425999729,1782090632000,-170.21,0.00013708,2]
[425999731,1782090632000,-200.72,0.00014024,2]
[425999728,1782090632000,-176.72,0.00013703,2]
[425999727,1782090632000,-246.15,0.00013488,2]
[425999726,1782090632000,-150.0,0.00013488,2]
[425999725,1782090632000,-150.0,0.00013488,2]
[425999734,1782090632000,-193.06985085,0.00014486,2]
[425999748,1782090632000,-319.0,0.00014581,2]
[425999762,1782090632000,-152.0,0.00014582,2]
[425999754,1782090632000,-150.0,0.00014582,2]
[425999760,1782090632000,-151.0,0.00014582,2]
[425999781,1782090632000,-309.0,0.00014585,2]
[425999780,1782090632000,-319.0,0.00014585,2]
[425999779,1782090632000,-152.0,0.00014585,2]
[425999778,1782090632000,-319.0,0.00014585,2]
[425999782,1782090632000,-316.0,0.00014585,2]
[425999777,1782090632000,-151.0,0.00014585,2]
[425999775,1782090632000,-150.0,0.00014584,2]
[425999769,1782090632000,-152.0,0.00014584,2]
[425999773,1782090632000,-150.0,0.00014584,2]
[425999772,1782090632000,-151.0,0.00014584,2]
[425999774,1782090632000,-500.0,0.00014584,2]
[425999776,1782090632000,-150.0,0.00014585,2]
[425999770,1782090632000,-151.0,0.00014584,2]
[425999752,1782090632000,-151.0,0.00014581,2]
[425999771,1782090632000,-151.0,0.00014584,2]
[425999755,1782090632000,-151.0,0.00014582,2]
[425999756,1782090632000,-150.0,0.00014582,2]
[425999764,1782090632000,-153.0,0.00014582,2]